[Event "Fagernes GM Open Autumn 2024"]
[Site "Fagernes"]
[Date "2024.10.09"]
[Round "4.14"]
[White "Hansen, Torbjorn Ringdal"]
[Black "Westrum, Kim Roger Hansen"]
[Result "1-0"]
[ECO "B37"]
[WhiteElo "2415"]
[BlackElo "2205"]
[Annotator "TA"]
[PlyCount "127"]
[EventDate "2024.10.03"]
[EventType "swiss"]
[EventCountry "NOR"]
[SourceTitle "playchess.com"]
[Source "ChessBase"]
[SourceQuality "1"]
[TimeControl "40/6000:2400+30"]

{[%evp 36,127,43,53,100,114,133,60,76,52,58,50,46,28,97,0,64,70,68,56,59,65,60,59,65,69,57,62,48,55,50,58,64,61,58,60,83,74,132,95,100,105,98,100,100,105,144,117,122,86,81,63,104,29,101,29,145,8,65,63,68,50,128,128,128,128,224,217,232,231,215,201,194,168,170,130,229,218,225,225,245,207,220,121,121,116,282,273,326,314,2941,2189,1407,279]} 1. e4 {[%emt 0:00:00]} c5 {[%emt 0:00:20]} 2. Nf3 {[%emt 0:00:00]} Nc6 {[%emt 0:00:00]} 3. d4 {[%emt 0:00:00]} cxd4 {[%emt 0:00:00]} 4. Nxd4 {[%emt 0:00:00]} g6 {[%emt 0:00:00]} 5. c4 {[%emt 0:00:00]} Bg7 {[%emt 0:00:00]} 6. Nc2 {[%emt 0:00:00]} Nf6 {[%emt 0:00:00]} 7. Nc3 {[%emt 0:00:00]} d6 {[%emt 0:00:00]} 8. Be2 {[%emt 0:00:00]} O-O {[%emt 0:00:00]} 9. O-O {[%emt 0:00:00]} Nd7 {[%emt 0:00:00]} 10. Bd2 {[%emt 0:00:00]} a5 {[%emt 0:00:00]} 11. Be3 {[%emt 0:00:00]} Nc5 {[%emt 0:00:11]} 12. f3 {[%emt 0:00:00]} a4 {[%emt 0:00:56]} 13. Na3 {[%emt 0:00:00]} Qa5 {[%emt 0:00:23]} 14. Qd2 {[%emt 0:00:00]} Be6 {[%emt 0:01:39]} 15. Rac1 {[%emt 0:00:00]} Qb4 {[%emt 0:08:53]} 16. Kh1 {[%emt 0:11:50]} Kh8 {[%emt 0:20:59]} 17. Rfd1 {[%emt 0:03:19]} Rac8 {[%emt 0:10:12]} 18. Rc2 {[%emt 0:06:17]} f5 {[%emt 0:01:24]} 19. exf5 {[%emt 0:00:11]} gxf5 {[%emt 0:06:47]} (19... Rxf5 $14 20. Qc1 Qa5) 20. Qc1 $16 {[%emt 0:06:22]} f4 {[%emt 0:09:52]} 21. Bf2 {[%emt 0:23:01]} (21. Bxf4 $16 {Strongly threatening Be3.} Nd4 22. Bg5 Nxc2 23. Nxc2) 21... Qa5 $14 {[%emt 0:02:25]} 22. Bf1 {[%emt 0:03:37]} Bf5 {[%emt 0:01:05]} 23. Rcd2 {[%emt 0:00:51]} Nb4 {[%emt 0:01:46]} 24. Bd4 {[%emt 0:04:26]} e5 {[%emt 0:04:15]} (24... Rf7 $11) 25. Bg1 {[%emt 0:00:11]} (25. Bxc5 $16 dxc5 26. Nab5) 25... e4 {[%emt 0:07:33]} (25... d5 $1 $11 26. cxd5 (26. Nxd5 Nxa2 27. Qa1 Nb4 $15) 26... Nxa2 27. Nxa2 Nb3) 26. fxe4 $14 {[%emt 0:02:22]} (26. Rxd6 e3 27. Qa1 Rc6 $17) 26... Nxe4 {[%emt 0:00:34]} 27. Rd4 {[%emt 0:02:41]} Nxc3 {[%emt 0:10:59]} 28. bxc3 {[%emt 0:13:29]} Nc6 {[%emt 0:00:03]} 29. Rd5 {[%emt 0:00:08]} Qxc3 {[%emt 0:00:46]} 30. Qxc3 {[%emt 0:00:00]} Bxc3 {[%emt 0:00:00]} 31. Nb5 $1 {[%emt 0:00:00]} (31. Rxd6 Bb4 32. Nb5 Bxd6 33. Nxd6 Rcd8 $17) 31... Be5 {[%emt 0:02:52]} 32. Nxd6 {[%emt 0:00:00]} Bxd6 {[%emt 0:00:24]} 33. Rxd6 {[%emt 0:00:00]} Bg4 {[%emt 0:00:35]} 34. R1d2 {[%emt 0:08:50]} f3 {[%emt 0:00:40]} 35. g3 {[%emt 0:00:00]} Rce8 {[%emt 0:00:42]} 36. Bf2 {[%emt 0:00:00]} Rd8 {[%emt 0:02:53]} (36... Kg7 $142) 37. a3 {[%emt 0:00:37]} Rxd6 {[%emt 0:00:00]} 38. Rxd6 {[%emt 0:00:00]} Bf5 {[%emt 0:00:18]} 39. c5 {[%emt 0:00:23]} Kg7 {[%emt 0:00:00]} 40. Bb5 {[%emt 0:02:11]} Be4 {[%emt 0:00:02]} 41. h3 {[%emt 0:44:37]} (41. Bxa4 $6 Ra8 42. Bb5 Rxa3 $11) 41... Ne5 {[%emt 0:21:21]} 42. Kh2 {[%emt 0:00:00]} Bc6 {[%emt 0:00:52]} 43. Bf1 {[%emt 0:00:00]} Rf6 {[%emt 0:01:35]} 44. Rd8 {[%emt 0:00:00]} (44. Rd1 $1 $16 {[%cal Rd1e1] Re1 would now be deadly.} Kf8 45. g4) 44... Rf8 {[%emt 0:03:47]} (44... h5 $1 $11 {remains equal.}) 45. Rd1 {[%emt 0:00:00]} ({White should try} 45. Rxf8 $1 $16 Kxf8 46. Bd4) 45... Kf7 {[%emt 0:02:34]} (45... Nf7 $1 $11) 46. Rd6 {[%emt 0:00:00]} ({Better is} 46. g4 $16) 46... Re8 {[%emt 0:00:48]} (46... h5 $11) 47. g4 $14 {[%emt 0:00:00]} Re6 {[%emt 0:00:46]} 48. Rd8 {[%emt 0:00:00]} Re8 {[%emt 0:00:25]} (48... h5 $1 $14) 49. Rd4 $16 {[%emt 0:00:00]} Re7 {[%emt 0:02:55]} 50. Kg3 {[%emt 0:00:00]} Rd7 {[%emt 0:01:17]} (50... Ke8 $16 51. Rd1 Re6) 51. Rxd7+ $18 {[%emt 0:00:00]} Nxd7 {[%emt 0:01:30]} 52. Bc4+ $1 {[%emt 0:00:00]} Ke7 {[%emt 0:03:03]} 53. Kf4 {[%emt 0:00:00]} Nf8 {[%emt 0:00:09]} 54. Bh4+ {[%emt 0:00:00]} Kd7 {[%emt 0:00:11]} 55. Kf5 $1 {[%emt 0:00:00]} Ng6 {[%emt 0:00:31]} (55... Ke8 $16 56. Bg3 Nd7) 56. Bg3 $1 $18 {[%emt 0:00:00]} Ne7+ {[%emt 0:00:14] [#]} 57. Ke5 $1 {[%emt 0:00:00]} Ng6+ {[%emt 0:00:31]} 58. Kf6 {[%emt 0:00:00]} Ne7 {[%emt 0:00:12] [#]} 59. Be6+ {[%emt 0:00:00]} ({White must play} 59. g5 $1 $18) 59... Ke8 {[%emt 0:01:13]} 60. Kg7 {[%emt 0:00:00]} Be4 $2 {[%emt 0:01:30]} (60... Bd5 $16 61. Bxd5 Nxd5) 61. h4 $18 {[%emt 0:00:00]} (61. Bf7+ Kd7 $14) 61... Ng6 {[%emt 0:04:10]} 62. h5 {[%emt 0:00:00]} (62. Kxh7 $2 {is the wrong capture.} Nf8+ (62... Nxh4+ 63. Kh6 $14) 63. Kg8 Nxe6 $19) 62... Nf8 $2 {[%emt 0:00:13]} (62... Ne7 63. Bc4 (63. Bf7+ Kd8 $16) 63... Nc6) 63. Bf7+ $18 {[%emt 0:00:14]} Ke7 {[%emt 0:00:23]} 64. Bh4+ {[%emt 0:00:06]} 1-0

[Event "Fagernes GM Open Autumn 2024"]
[Site "Fagernes"]
[Date "2024.10.09"]
[Round "4.15"]
[White "Bhagat Kush"]
[Black "Sherman, Raem"]
[Result "1-0"]
[ECO "C07"]
[WhiteElo "2245"]
[BlackElo "2390"]
[Annotator "TA"]
[PlyCount "77"]
[EventDate "2024.10.03"]
[EventType "swiss"]
[EventCountry "NOR"]
[SourceTitle "playchess.com"]
[Source "ChessBase"]
[SourceQuality "1"]
[TimeControl "40/6000:2400+30"]

{[%evp 14,77,12,2,20,6,12,0,0,0,7,0,0,0,0,0,0,0,0,0,0,0,0,0,0,0,38,0,20,29,54,33,64,38,63,45,55,18,26,20,14,9,131,132,106,112,122,49,171,91,110,114,603,556,29984,29985,29992,29993,29993,29994,29994,29995,29995,29996,29997,29998]} 1. e4 {[%emt 0:00:00]} e6 {[%emt 0:00:00]} 2. d4 {[%emt 0:00:00]} d5 {[%emt 0:00:00]} 3. Nd2 {[%emt 0:00:00]} c5 {[%emt 0:00:00]} 4. Ngf3 {[%emt 0:00:00]} cxd4 {[%emt 0:00:00]} 5. Nxd4 {[%emt 0:00:00]} Nc6 {[%emt 0:00:00]} 6. Bb5 {[%emt 0:00:00]} Bd7 {[%emt 0:00:00]} 7. Nxc6 {[%emt 0:00:00]} bxc6 {[%emt 0:00:00]} 8. Bd3 {[%emt 0:00:00]} Bd6 {[%emt 0:00:00]} 9. Qe2 {[%emt 0:00:00]} e5 {[%emt 0:00:00]} 10. c4 {[%emt 0:00:00]} d4 {[%emt 0:00:00] The position is equal.} 11. c5 {[%emt 0:00:00]} Bxc5 {[%emt 0:00:00]} 12. Nc4 {[%emt 0:00:00]} Bb4+ {[%emt 0:01:04]} 13. Bd2 {[%emt 0:00:00]} Qe7 {[%emt 0:03:04]} 14. O-O {[%emt 0:00:00]} Bxd2 {[%emt 0:00:00]} 15. Qxd2 {[%emt 0:00:00]} Nh6 {[%emt 0:10:06]} 16. f4 {[%emt 0:00:00]} exf4 {[%emt 0:00:26]} 17. Qxf4 {[%emt 0:00:00] Strongly threatening Nd6+.} O-O {[%emt 0:10:45]} 18. h3 {[%emt 0:17:46]} c5 {[%emt 0:00:00]} 19. e5 {[%emt 0:00:00]} f5 {[%emt 0:00:00]} 20. Rae1 {[%emt 0:00:00]} Be6 {[%emt 0:00:00]} 21. Nd6 {[%emt 0:00:00]} Kh8 {[%emt 0:00:00][%cal Oa8d8]} 22. Qc1 {[%emt 0:00:00]} f4 {[%emt 0:00:00]} 23. Rxf4 {[%emt 0:00:00]} (23. Qxc5 f3 24. Qxd4 (24. Rxf3 $2 Rxf3 25. Qxd4 Rff8 $19) 24... fxg2 25. Rxf8+ (25. Kxg2 $2 Qg5+ 26. Kh1 Qh5 $19) 25... Rxf8 $11) 23... Rxf4 {[%emt 0:00:00]} 24. Qxf4 {[%emt 0:00:00] Qe4 is the strong threat.} Rf8 $1 {[%emt 0:00:00]} 25. Qe4 {[%emt 0:00:00][%csl Gd3][%cal Re4h7]} g6 $1 {[%emt 0:00:00] [#]} 26. b4 $1 {[%emt 0:00:00]} cxb4 {[%emt 0:00:00]} 27. Qxd4 {[%emt 0:00:00]} Rd8 {[%emt 0:00:00]} (27... a5 $11) 28. Qxb4 $16 {[%emt 0:00:00]} Bxa2 {[%emt 0:00:00]} 29. Qd4 $36 {[%emt 0:00:00][%mdl 2048] White is really pushing.} Be6 {[%emt 0:00:00]} 30. Rb1 {[%emt 0:00:00]} (30. Ra1 $16) 30... Kg7 {[%emt 0:00:00]} ({Black should play} 30... Nf5 $14 31. Bxf5 gxf5) 31. Ra1 {[%emt 0:00:00]} ({Better is} 31. Bc4 $18 {Hoping for Qc3.} Nf5 32. Qc3 (32. Rb7 $2 Qxb7 33. Nxf5+ gxf5 $17)) 31... Nf7 {[%emt 0:00:00]} 32. Rxa7 {[%emt 0:00:00] White is much more active.} ({Much weaker is} 32. Qxa7 $6 Qxa7+ 33. Rxa7 Rd7 34. Rxd7 Bxd7 $11) 32... Qg5 {[%emt 0:41:44][%mdl 8192]} (32... Rd7 $16 33. Ra6 Kg8) 33. Bc4 $18 {[%emt 1:16:29]} Kh6 {[%emt 0:09:06] Black is weak on the light squares} 34. Bxe6 {[%emt 0:00:42] White mates.} (34. Nxf7+ $2 {perishes.} Bxf7 35. Rd7 Qc1+ (35... Rxd7 $2 36. Qxd7 Qe3+ 37. Kh1 $19) 36. Bf1 Rxd7 37. Qxd7 Bc4 $19) 34... Nxd6 {[%emt 0:00:54]} 35. exd6 {[%emt 0:00:00]} Rxd6 {[%emt 0:00:00]} 36. Qg7+ {[%emt 0:00:00]} Kh5 {[%emt 0:00:00]} 37. Qxh7+ {[%emt 0:00:00]} Qh6 {[%emt 0:00:00]} 38. Ra5+ {[%emt 0:00:00]} g5 {[%emt 0:00:00] [#]} 39. Rxg5+ $3 {[%emt 0:00:00] Weighted Error Value: White=0.11 (very precise) /Black=0.52.  Loses game:     	---       	Black=1      Mistake:       	White=2     	Black=2      Inaccurate:     	White=2     	Black=3      OK:         	White=11    	Black=10     Best:        	White=3     	Black=1      Strong:       	---       	Black=2} 1-0

[Event "Fagernes GM Open Autumn 2024"]
[Site "Fagernes"]
[Date "2024.10.09"]
[Round "4.16"]
[White "Sian, Shadi"]
[Black "Sidhant, Mohapatra"]
[Result "0-1"]
[ECO "D46"]
[WhiteElo "2182"]
[BlackElo "2369"]
[Annotator "RC"]
[PlyCount "78"]
[EventDate "2024.10.03"]
[EventType "swiss"]
[EventCountry "NOR"]
[SourceTitle "playchess.com"]
[Source "ChessBase"]
[SourceQuality "1"]
[TimeControl "40/6000:2400+30"]

1. d4 {[%emt 0:01:36]} d5 {[%emt 0:00:00]} 2. c4 {[%emt 0:00:00]} e6 {[%emt 0:00:00]} 3. Nc3 {[%emt 0:00:00]} c6 {[%emt 0:00:00]} 4. e3 {[%emt 0:05:23]} Nf6 {[%emt 0:00:00]} 5. Nf3 {[%emt 0:00:02]} Nbd7 {[%emt 0:00:00]} 6. Bd3 {[%emt 0:03:38]} dxc4 {[%emt 0:03:50]} 7. Bxc4 {[%emt 0:00:00]} b5 {[%emt 0:00:00]} 8. Bd3 {[%emt 0:00:52]} Bd6 {[%emt 0:00:00]} 9. O-O {[%emt 0:00:37]} O-O {[%emt 0:00:00]} 10. e4 {[%emt 0:13:41]} e5 {[%emt 0:00:00]} 11. d5 {[%emt 0:05:32]} cxd5 {[%emt 0:06:30]} 12. Nxd5 {[%emt 0:00:40]} Nxd5 {[%emt 0:13:02]} 13. exd5 {[%emt 0:00:00]} a6 {[%emt 0:00:31]} 14. Qc2 {[%emt 0:09:02]} h6 {[%emt 0:03:32]} 15. Qc6 {[%emt 0:16:55]} Nc5 {[%emt 0:14:15]} 16. Qxa8 {[%emt 0:05:07]} Nxd3 {[%emt 0:00:00]} 17. Ne1 {[%emt 0:11:47]} Nc5 {[%emt 0:05:35]} 18. Be3 {[%emt 0:02:58]} Qe7 {[%emt 0:00:06]} 19. Bxc5 {[%emt 0:07:41]} Bxc5 {[%emt 0:00:00]} 20. d6 {[%emt 0:00:03]} Qxd6 {[%emt 0:04:48]} 21. Qf3 {[%emt 0:00:00]} Qb6 {[%emt 0:01:34]} 22. Nc2 {[%emt 0:03:37]} Bb7 {[%emt 0:00:19]} 23. Qg3 {[%emt 0:00:00]} Re8 {[%emt 0:00:59]} 24. Rfe1 {[%emt 0:01:29]} a5 {[%emt 0:01:18]} 25. Ne3 {[%emt 0:00:34]} Re6 {[%emt 0:00:49]} 26. Rac1 {[%emt 0:03:12]} Kh7 {[%emt 0:01:49]} 27. Qg4 {[%emt 0:02:24]} Rf6 {[%emt 0:04:20]} 28. Qd7 {[%emt 0:00:07]} Bd4 {[%emt 0:02:51]} 29. Qc7 {[%emt 0:01:24]} Qa7 {[%emt 0:00:08]} 30. Rc2 {[%emt 0:00:01]} Qa8 {[%emt 0:01:30]} 31. Kf1 {[%emt 0:00:55]} Rg6 {[%emt 0:06:19]} 32. Qxf7 {[%emt 0:00:00]} Bxg2+ {[%emt 0:00:00]} 33. Ke2 {[%emt 0:00:10]} Rf6 {[%emt 0:00:00]} 34. Qb3 {[%emt 0:00:01]} a4 {[%emt 0:02:02]} 35. Qa3 {[%emt 0:00:00]} b4 {[%emt 0:02:09]} 36. Qxb4 {[%emt 0:00:00]} Qf3+ {[%emt 0:00:00]} 37. Kd3 {[%emt 0:00:00]} Qe4+ {[%emt 0:00:28]} 38. Ke2 {[%emt 0:00:00]} Bf3+ {[%emt 0:00:12]} 39. Kf1 {[%emt 0:00:00]} Qd3+ {[%emt 0:00:00]} 0-1

[Event "Fagernes GM Open Autumn 2024"]
[Site "Fagernes"]
[Date "2024.10.09"]
[Round "4.17"]
[White "Namitbir Singh Walia"]
[Black "Vijayakumar, Rishi"]
[Result "1/2-1/2"]
[ECO "C78"]
[WhiteElo "2351"]
[BlackElo "2172"]
[Annotator "RC"]
[PlyCount "100"]
[EventDate "2024.10.03"]
[EventType "swiss"]
[EventCountry "NOR"]
[SourceTitle "playchess.com"]
[Source "ChessBase"]
[SourceQuality "1"]
[TimeControl "40/6000:2400+30"]

1. e4 {[%emt 0:00:00]} e5 {[%emt 0:01:19]} 2. Nf3 {[%emt 0:00:00]} Nc6 {[%emt 0:00:00]} 3. Bb5 {[%emt 0:00:00]} a6 {[%emt 0:00:00]} 4. Ba4 {[%emt 0:00:00]} Nf6 {[%emt 0:00:00]} 5. O-O {[%emt 0:00:00]} b5 {[%emt 0:00:00]} 6. Bb3 {[%emt 0:00:00]} Bc5 {[%emt 0:00:00]} 7. a4 {[%emt 0:00:00]} Rb8 {[%emt 0:00:00]} 8. Nxe5 {[%emt 0:00:00]} Nxe5 {[%emt 0:00:00]} 9. d4 {[%emt 0:00:00]} Bxd4 {[%emt 0:00:00]} 10. Qxd4 {[%emt 0:00:00]} d6 {[%emt 0:00:00]} 11. f4 {[%emt 0:00:00]} Nc6 {[%emt 0:00:00]} 12. Qc3 {[%emt 0:00:00]} Ne7 {[%emt 0:00:00]} 13. Qd3 {[%emt 0:00:00]} O-O {[%emt 0:00:00]} 14. Nc3 {[%emt 0:00:00]} c5 {[%emt 0:00:00]} 15. axb5 {[%emt 0:00:00]} axb5 {[%emt 0:00:00]} 16. Nxb5 {[%emt 0:00:00]} Nxe4 {[%emt 0:00:00]} 17. Qxe4 {[%emt 0:00:00]} Rxb5 {[%emt 0:00:00]} 18. Ra7 {[%emt 0:00:00]} Bd7 {[%emt 0:00:00]} 19. Qd3 {[%emt 0:00:00]} Nf5 {[%emt 0:15:50]} 20. Bc4 {[%emt 0:00:00]} Rb8 {[%emt 0:08:19]} 21. Bd2 {[%emt 0:09:44]} Be6 {[%emt 0:23:49]} 22. Bxe6 {[%emt 0:12:38]} fxe6 {[%emt 0:00:00]} 23. Bc3 {[%emt 0:15:03]} c4 {[%emt 0:08:13]} 24. Qe2 {[%emt 0:00:22]} Qb6+ {[%emt 0:00:17]} 25. Qf2 {[%emt 0:00:00]} Qxf2+ {[%emt 0:00:31]} 26. Kxf2 {[%emt 0:32:43]} e5 {[%emt 0:14:22]} 27. Ke2 {[%emt 0:03:34]} Nd4+ {[%emt 0:00:56]} 28. Kd2 {[%emt 0:00:05]} Nb5 {[%emt 0:02:14]} 29. Rd7 {[%emt 0:01:19]} Nxc3 {[%emt 0:02:16]} 30. Kxc3 {[%emt 0:00:34]} exf4 {[%emt 0:01:16]} 31. Rxd6 {[%emt 0:03:17]} Rbe8 {[%emt 0:00:57]} 32. Rd4 {[%emt 0:03:07]} g5 {[%emt 0:03:24]} 33. Rf3 {[%emt 0:04:07]} Re2 {[%emt 0:00:49]} 34. Rd2 {[%emt 0:03:32]} Re3+ {[%emt 0:04:14]} 35. Rxe3 {[%emt 0:03:19]} fxe3 {[%emt 0:00:00]} 36. Re2 {[%emt 0:01:48]} Rf2 {[%emt 0:00:00]} 37. Rxe3 {[%emt 0:00:07]} Rxg2 {[%emt 0:00:00]} 38. h3 {[%emt 0:01:40]} h5 {[%emt 0:00:22]} 39. b4 {[%emt 0:01:17]} cxb3 {[%emt 0:00:00]} 40. cxb3 {[%emt 0:00:51]} g4 {[%emt 0:03:09]} 41. hxg4 {[%emt 0:20:41]} Rxg4 {[%emt 0:04:12]} 42. b4 {[%emt 0:02:04]} h4 {[%emt 0:00:59]} 43. b5 {[%emt 0:02:34]} Kf7 {[%emt 0:01:20]} 44. Re1 {[%emt 0:04:06]} h3 {[%emt 0:03:22]} 45. b6 {[%emt 0:04:10]} Rg6 {[%emt 0:03:41]} 46. Rb1 {[%emt 0:03:59]} h2 {[%emt 0:00:18]} 47. b7 {[%emt 0:00:26]} Rg8 {[%emt 0:00:07]} 48. Kd4 {[%emt 0:02:34]} Ke6 {[%emt 0:07:17]} 49. Kc5 {[%emt 0:00:57]} Kd7 {[%emt 0:00:22]} 50. Rh1 {[%emt 0:01:39]} Kc7 {[%emt 0:00:05]} 1/2-1/2

[Event "Fagernes GM Open Autumn 2024"]
[Site "Fagernes"]
[Date "2024.10.09"]
[Round "4.18"]
[White "Myagmarsuren, Evsuld"]
[Black "Eliseev, Sergey"]
[Result "1-0"]
[ECO "B90"]
[WhiteElo "2171"]
[BlackElo "2276"]
[Annotator "RC"]
[PlyCount "76"]
[EventDate "2024.10.03"]
[EventType "swiss"]
[EventCountry "NOR"]
[SourceTitle "playchess.com"]
[Source "ChessBase"]
[SourceQuality "1"]
[TimeControl "40/6000:2400+30"]

1. e4 {[%emt 0:00:00]} c5 {[%emt 0:09:48]} 2. Nf3 {[%emt 0:00:00]} d6 {[%emt 0:00:21]} 3. d4 {[%emt 0:00:00]} Nf6 {[%emt 0:00:00]} 4. Nc3 {[%emt 0:00:00]} cxd4 {[%emt 0:00:00]} 5. Nxd4 {[%emt 0:00:00]} a6 {[%emt 0:00:00]} 6. Be3 {[%emt 0:00:00]} e5 {[%emt 0:00:00]} 7. Nb3 {[%emt 0:00:00]} Be6 {[%emt 0:00:00]} 8. f3 {[%emt 0:00:00]} Be7 {[%emt 0:00:00]} 9. Qd2 {[%emt 0:00:00]} O-O {[%emt 0:00:00]} 10. O-O-O {[%emt 0:00:00]} Nbd7 {[%emt 0:00:00]} 11. g4 {[%emt 0:00:00]} b5 {[%emt 0:00:00]} 12. g5 {[%emt 0:00:00]} b4 {[%emt 0:00:00]} 13. Ne2 {[%emt 0:00:00]} Nh5 {[%emt 0:00:00]} 14. f4 {[%emt 0:02:17]} a5 {[%emt 0:14:51]} 15. f5 {[%emt 0:00:00]} a4 {[%emt 0:10:50]} 16. fxe6 {[%emt 0:00:00]} axb3 {[%emt 0:09:09]} 17. cxb3 {[%emt 0:00:00]} fxe6 {[%emt 0:08:50]} 18. Bh3 {[%emt 0:06:09]} Qc8+ {[%emt 0:12:07]} 19. Kb1 {[%emt 0:01:07]} Nc5 {[%emt 0:01:18]} 20. Qxb4 {[%emt 0:02:56]} Rf3 {[%emt 0:03:05]} 21. Bg4 {[%emt 0:02:28]} Rxe3 {[%emt 0:00:33]} 22. Bxh5 {[%emt 0:00:00]} g6 {[%emt 0:01:51]} 23. Qd2 {[%emt 0:01:51]} Rd3 {[%emt 0:02:33]} 24. Qc1 {[%emt 0:00:29]} Qa6 {[%emt 0:04:27]} 25. Nc3 {[%emt 0:00:25]} gxh5 {[%emt 0:02:41]} 26. g6 {[%emt 0:00:00]} Rxc3 {[%emt 0:07:51]} 27. gxh7+ {[%emt 0:01:21]} Kh8 {[%emt 0:00:00]} 28. Qxc3 {[%emt 0:00:00]} Nxe4 {[%emt 0:01:26]} 29. Qc7 {[%emt 0:03:21]} Bd8 {[%emt 0:02:48]} 30. Qd7 {[%emt 0:00:47]} Bg5 {[%emt 0:03:01]} 31. a4 {[%emt 0:04:16]} Qa7 {[%emt 0:01:49]} 32. Qc6 {[%emt 0:01:25]} Nd2+ {[%emt 0:00:00]} 33. Ka2 {[%emt 0:00:00]} Qa6 {[%emt 0:00:00]} 34. Qc2 {[%emt 0:00:11]} Rc8 {[%emt 0:00:00]} 35. Qg6 {[%emt 0:00:00]} Qb7 {[%emt 0:00:00]} 36. Rxd2 {[%emt 0:00:00]} Qxh1 {[%emt 0:00:06]} 37. Qxg5 {[%emt 0:00:00]} Qf3 {[%emt 0:00:00]} 38. Rxd6 {[%emt 0:00:38]} Rb8 {[%emt 0:00:00]} 1-0

[Event "Fagernes GM Open Autumn 2024"]
[Site "Fagernes"]
[Date "2024.10.09"]
[Round "4.19"]
[White "Kanyamarala, Tarun"]
[Black "Soham Datar"]
[Result "1-0"]
[ECO "E46"]
[WhiteElo "2369"]
[BlackElo "2188"]
[Annotator "RC"]
[PlyCount "65"]
[EventDate "2024.10.03"]
[EventType "swiss"]
[EventCountry "NOR"]
[SourceTitle "playchess.com"]
[Source "ChessBase"]
[SourceQuality "1"]
[TimeControl "40/6000:2400+30"]

1. d4 {[%emt 0:00:00]} Nf6 {[%emt 0:00:00]} 2. c4 {[%emt 0:00:00]} e6 {[%emt 0:00:00]} 3. Nc3 {[%emt 0:00:00]} Bb4 {[%emt 0:00:00]} 4. e3 {[%emt 0:00:00]} O-O {[%emt 0:00:00]} 5. Nge2 {[%emt 0:00:00]} c5 {[%emt 0:00:36]} 6. a3 {[%emt 0:00:00]} Bxc3+ {[%emt 0:00:00]} 7. Nxc3 {[%emt 0:00:00]} b6 {[%emt 0:06:18]} 8. d5 {[%emt 0:06:20]} exd5 {[%emt 0:06:18]} 9. cxd5 {[%emt 0:00:00]} d6 {[%emt 0:00:51]} 10. Bd3 {[%emt 0:01:15]} Ba6 {[%emt 0:05:11]} 11. O-O {[%emt 0:03:38]} Bxd3 {[%emt 0:00:49]} 12. Qxd3 {[%emt 0:00:00]} Nbd7 {[%emt 0:00:00]} 13. e4 {[%emt 0:03:41]} a6 {[%emt 0:00:00]} 14. a4 {[%emt 0:03:15]} Qc7 {[%emt 0:02:51]} 15. Bg5 {[%emt 0:03:43]} c4 {[%emt 0:03:23]} 16. Qg3 {[%emt 0:07:24]} Rfe8 {[%emt 0:02:40]} 17. Rae1 {[%emt 0:09:01]} Rab8 {[%emt 0:02:48]} 18. f4 {[%emt 0:07:52]} b5 {[%emt 0:04:14]} 19. e5 {[%emt 0:03:38]} Nh5 {[%emt 0:14:02]} 20. Qf3 {[%emt 0:21:42]} g6 {[%emt 0:01:48]} 21. g4 {[%emt 0:01:30]} Qc5+ {[%emt 0:05:34]} 22. Kh1 {[%emt 0:03:57]} Ng7 {[%emt 0:05:27]} 23. Rd1 {[%emt 0:01:36]} Qa7 {[%emt 0:14:18]} 24. Ne4 {[%emt 0:00:58]} h5 {[%emt 0:07:34]} 25. gxh5 {[%emt 0:10:28]} Nxh5 {[%emt 0:00:58]} 26. Nxd6 {[%emt 0:00:10]} Rf8 {[%emt 0:00:59]} 27. axb5 {[%emt 0:00:19]} axb5 {[%emt 0:00:31]} 28. Bh6 {[%emt 0:01:20]} Nc5 {[%emt 0:04:27]} 29. Bxf8 {[%emt 0:01:53]} Rxf8 {[%emt 0:00:00]} 30. f5 {[%emt 0:01:09]} Qe7 {[%emt 0:01:32]} 31. fxg6 {[%emt 0:01:11]} Qh4 {[%emt 0:00:00]} 32. gxf7+ {[%emt 0:00:58]} Kh8 {[%emt 0:00:00]} 33. Nf5 {[%emt 0:00:00]} 1-0